lending/lending_fUSD_20260306
["ID","MTS","AMOUNT","RATE_DAILY","PERIOD"]
[407786553,1772800239626,-352.04926069,0.00016665,2]
[407786554,1772800239636,-151.0,0.00016672,2]
[407786555,1772800239645,-164.89685656,0.00016673,2]
[407786556,1772800239655,-502.25687536,0.00016673,2]
[407786557,1772800239665,-500.0,0.00016673,2]
[407786558,1772800239675,-500.37983606,0.00016673,2]
[407786559,1772800239685,-500.0,0.00016673,2]
[407786560,1772800239695,-500.0,0.00016673,2]
[407786561,1772800239704,-500.0,0.00016673,2]
[407786562,1772800239714,-492.56619301,0.00016674,2]
[407786563,1772800239724,-500.0,0.00016674,2]
[407786564,1772800239733,-215.82300736,0.00016674,2]
[407786565,1772800239742,-500.0,0.00016674,2]
[407786566,1772800239751,-500.0,0.00016674,2]
[407786567,1772800239761,-500.0,0.00016674,2]
[407786568,1772800239772,-500.0,0.00016674,2]
[407786569,1772800239781,-500.0,0.00016674,2]
[407786570,1772800239791,-500.0,0.00016674,2]
[407786571,1772800239801,-500.0,0.00016674,2]
[407786572,1772800239810,-500.0,0.00016674,2]
[407786573,1772800239819,-500.0,0.00016674,2]
[407786574,1772800239829,-500.0,0.00016674,2]
[407786575,1772800239838,-500.0,0.00016674,2]
[407786576,1772800239847,-500.0,0.00016674,2]
[407786577,1772800239856,-500.0,0.00016674,2]
[407786578,1772800239866,-500.0,0.00016674,2]
[407786579,1772800239875,-500.0,0.00016674,2]
[407786580,1772800239885,-500.0,0.00016674,2]
[407786581,1772800239894,-500.0,0.00016674,2]
[407786582,1772800239904,-500.0,0.00016674,2]
[407786583,1772800239913,-500.0,0.00016674,2]
[407786584,1772800239923,-500.0,0.00016674,2]
[407786585,1772800239932,-500.0,0.00016674,2]
[407786586,1772800239941,-500.0,0.00016674,2]
[407786587,1772800239951,-513.12731001,0.00016674,2]
[407786588,1772800239960,-2500000.0,0.00016675,2]
[407786589,1772800239970,-2000.0,0.000167,2]
[407786590,1772800239979,-166.34,0.00016712,2]
[407786591,1772800239988,-1500.0,0.00016768,2]
[407786592,1772800239997,-318.82,0.00016789,2]
[407786593,1772800240007,-153.87,0.0001679,2]
[407786594,1772800240017,-2000.0,0.000168,2]
[407786595,1772800240026,-1323.26941474,0.00016809,2]
[407786596,1772800240035,-500.0,0.00016899,2]
[407786597,1772800240044,-500.0,0.00016899,2]
[407786598,1772800240053,-2000.0,0.000169,2]
[407786599,1772800240062,-2000.0,0.000169,2]
[407786600,1772800240071,-300.0,0.00016965,2]
[407786601,1772800240081,-2290.50907272,0.00016986,2]
[407786602,1772800240091,-5000.0,0.00016986,2]
[407786603,1772800240100,-250.0,0.00016986,2]
[407786604,1772800240109,-2800.840232,0.00017,2]
[407786605,1772800240118,-1500.0,0.00017,2]
[407786606,1772800240128,-200.0,0.00017,2]
[407786607,1772800240137,-11044.62705703,0.00017015,2]
[407786608,1772800240146,-2495.12,0.0001704,2]
[407786609,1772800240155,-153.87,0.0001706,2]
[407786610,1772800240164,-1680.0,0.00017068,2]
[407786611,1772800240173,-1000.0,0.00017121,2]
[407786612,1772800240182,-1000.0,0.00017121,2]
[407786613,1772800240191,-1000.0,0.00017121,2]
[407786614,1772800240200,-1000.0,0.00017121,2]
[407786615,1772800240209,-494.64624274,0.00017121,2]
[407786616,1772800240218,-1000.0,0.00017121,2]
[407786617,1772800240227,-1000.0,0.00017121,2]
[407786618,1772800240238,-449.5306254,0.00017121,2]
[407786619,1772800240258,-1000.0,0.00017121,2]
[407786620,1772800240276,-1000.0,0.00017121,2]
[407786622,1772800240286,-170.94637663,0.0001715,2]
[407786623,1772800240296,-372.24433971,0.00017221,2]
[407786624,1772800240305,-556.1229892,0.00017221,2]
[407786625,1772800240314,-586.26351861,0.0001726,2]
[407786626,1772800240323,-2000.0,0.00017316,2]
[407786627,1772800240332,-153.87,0.0001733,2]
[407786628,1772800240342,-1000.0,0.00017372,2]
[407786629,1772800240351,-1323.26941474,0.00017427,2]
[407786630,1772800240361,-11044.62705703,0.00017496,2]
[407786631,1772800240371,-6439.64,0.0001751,7]
[407786632,1772800240380,-643.97,0.0001751,7]
[407786633,1772800240389,-153.87,0.000176,2]
[407786634,1772800240399,-1500.0,0.00017668,2]
[407786635,1772800240409,-1500.0,0.00017668,2]
[407786636,1772800240418,-1500.0,0.00017668,2]
[407786638,1772800240428,-1500.0,0.00017668,2]
[407786639,1772800240437,-1500.0,0.00017668,2]
[407786640,1772800240447,-1500.0,0.00017668,2]
[407786641,1772800240456,-1500.0,0.00017668,2]
[407786642,1772800240466,-1500.0,0.00017668,2]
[407786643,1772800240475,-170.94637663,0.000177,2]
[407786644,1772800240485,-800.0,0.00017808,2]
[407786645,1772800240495,-564.0,0.00017839,2]
[407786646,1772800240505,-2500.0,0.00017864,2]
[407786647,1772800240515,-153.87,0.0001787,2]
[407786648,1772800240525,-586.26351861,0.0001792,2]
[407786649,1772800240535,-13441.75,0.00017937,7]
[407786650,1772800240545,-172.74325605,0.00017937,7]
[407786651,1772800240554,-160.0,0.00017937,7]
[407786652,1772800240564,-11044.62705703,0.00017977,2]
[407786653,1772800240573,-779.82,0.00017989,2]
[407786654,1772800240582,-500.0,0.00017989,2]
[407786655,1772800240868,-1512.01,0.0001799,2]
[407786656,1772800240878,-1512.01,0.0001799,30]
[407786657,1772800240887,-182.80013699,0.00018,2]
[407786658,1772800240896,-200.0,0.00018,2]
[407786659,1772800240905,-4829.73,0.00018035,7]
[407786660,1772800240916,-482.97,0.00018035,7]
[407786661,1772800240925,-1323.26941474,0.00018046,2]
[407786662,1772800240934,-153.87,0.0001814,2]
[407786663,1772800240943,-1008.0,0.00018155,2]
[407786664,1772800240953,-1008.0,0.00018155,30]
[407786665,1772800240962,-500.0,0.00018167,2]
[407786666,1772800240971,-500.0,0.000182,2]
[407786667,1772800240980,-301.78790722,0.000182,2]
[407786668,1772800240990,-500.0,0.000182,2]
[407786669,1772800240999,-442.99956491,0.00018216,2]
[407786671,1772800241008,-2000.0,0.00018216,2]
[407786673,1772800241017,-2000.0,0.00018216,2]
[407786675,1772800241027,-2000.0,0.00018216,2]
[407786677,1772800241036,-1778.57186039,0.00018216,2]
[407786679,1772800241045,-170.94637663,0.0001825,2]
[407786681,1772800241054,-438.37292204,0.0001825,2]
[407786683,1772800241063,-157.40983265,0.0001825,2]
[407786684,1772800241072,-268.74096125,0.0001825,2]
[407786686,1772800241082,-1308.16777387,0.0001825,2]
[407786689,1772800241091,-2803.0,0.000184,2]
[407786690,1772800241100,-847.0,0.000184,2]
[407786692,1772800241110,-160.0,0.000184,2]
[407786695,1772800241121,-2803.0,0.000184,2]
[407786696,1772800241131,-500.0,0.000184,2]
[407786699,1772800241141,-500.0,0.000184,2]
[407786700,1772800241151,-500.0,0.000184,2]
[407786703,1772800241161,-153.87,0.0001841,2]
[407786705,1772800241170,-3000.0,0.00018412,2]
[407786706,1772800241179,-11044.62705703,0.00018458,2]
[407786708,1772800241189,-10081.32,0.00018475,7]
[407786710,1772800241201,-500.0,0.0001848,2]
[407786712,1772800241211,-876.76,0.00018537,2]
[407786715,1772800241221,-3219.82,0.00018561,7]
[407786716,1772800241230,-321.98,0.00018561,7]
[407786718,1772800241239,-500.0,0.00018571,2]
[407786720,1772800241248,-500.0,0.00018571,2]
[407786722,1772800241257,-586.26351861,0.0001858,2]
[407786723,1772800241266,-1323.26941474,0.00018664,2]
[407786724,1772800241275,-153.87,0.0001868,2]
[407786725,1772800241285,-1000.0,0.00018715,2]
[407786726,1772800241294,-2803.0,0.0001872,2]
[407786727,1772800241303,-160.0,0.0001872,2]
[407786728,1772800241312,-849.85488597,0.00018748,2]
[407786729,1772800241322,-705.88057451,0.00018748,2]
[407786730,1772800241331,-780.83,0.00018756,2]
[407786731,1772800241340,-2500.0,0.00018764,2]
[407786732,1772800241350,-2500.0,0.00018764,2]
[407786733,1772800241359,-2500.0,0.00018764,2]
[407786734,1772800241368,-2351.0,0.00018765,2]
[407786735,1772800241377,-170.94637663,0.000188,2]
[407786736,1772800241387,-876.76,0.00018811,2]
[407786737,1772800241396,-168.0,0.00018837,2]
[407786738,1772800241405,-16527.10792,0.00018923,7]
[407786739,1772800241414,-172.74325605,0.00018923,7]
[407786740,1772800241423,-11044.62705703,0.00018938,2]
[407786741,1772800241432,-1000.0,0.00018948,2]
[407786742,1772800241442,-1000.0,0.00018948,2]
[407786743,1772800241451,-153.87,0.0001895,2]
[407786744,1772800241460,-1500.0,0.0001896,2]
[407786745,1772800241470,-168.0,0.00018985,2]
[407786746,1772800241479,-5026.57882922,0.00019,2]
[407786747,1772800241488,-5000.0,0.00019,2]
[407786748,1772800241498,-5000.0,0.00019,2]
[407786749,1772800241507,-168.23728436,0.00019,2]
[407786750,1772800241522,-6720.88,0.00019013,7]
[407786751,1772800241531,-235.21838039,0.00019028,2]
[407786752,1772800241540,-780.83,0.0001903,2]
[407786753,1772800241550,-847.0,0.0001904,2]
[407786754,1772800241559,-876.76,0.00019085,2]
[407786755,1772800241568,-29547.53,0.000191,2]
[407786756,1772800241579,-1000.0,0.00019119,2]
[407786757,1772800241589,-1000.0,0.00019119,2]
[407786758,1772800241603,-150.0,0.00019178,2]
[407786759,1772800241612,-153.87,0.0001922,2]
[407786760,1772800241622,-586.26351861,0.0001924,2]
[407786761,1772800241631,-1323.26941474,0.00019282,2]
[407786762,1772800241643,-1000.0,0.00019302,2]
[407786763,1772800241652,-780.83,0.00019304,2]
[407786764,1772800241661,-3000.0,0.00019312,2]
[407786765,1772800241673,-1027.87464689,0.00019312,2]
[407786766,1772800241683,-3000.0,0.00019312,2]
[407786767,1772800241692,-172.74325605,0.00019344,2]
[407786768,1772800241700,-160.0,0.00019344,2]
[407786769,1772800241710,-170.94637663,0.0001935,2]
[407786770,1772800241719,-876.76,0.00019359,2]
[407786771,1772800241729,-160.0,0.0001936,2]
[407786772,1772800241738,-847.0,0.0001936,2]
[407786773,1772800241747,-844.0,0.0001936,2]
[407786774,1772800241757,-2803.0,0.0001936,2]
[407786775,1772800241766,-11044.62705703,0.00019419,2]
[407786776,1772800241775,-168.0,0.0001948,2]
[407786777,1772800241785,-153.87,0.0001949,2]
[407786778,1772800241794,-1500.0,0.00019496,2]
[407786779,1772800241804,-1134.58548457,0.00019496,2]
[407786780,1772800241813,-318.82,0.00019522,2]
[407786781,1772800241822,-500.0,0.00019576,2]
[407786782,1772800241832,-780.83,0.00019578,2]
[407786783,1772800241841,-833.54,0.00019633,2]
[407786784,1772800241853,-1500.0,0.00019667,2]
[407786785,1772800241863,-1500.0,0.00019667,2]
[407786786,1772800241872,-2803.0,0.0001968,2]
[407786787,1772800241881,-160.0,0.0001968,2]
[407786788,1772800241890,-847.0,0.0001968,2]
[407786789,1772800241899,-2803.0,0.0001968,2]
[407786790,1772800241908,-160.0,0.0001968,2]
[407786791,1772800241918,-168.0,0.00019689,2]
[407786792,1772800241927,-168.0,0.00019696,2]
[407786793,1772800241937,-250.0,0.00019726,2]
[407786794,1772800241947,-153.87,0.0001976,2]
[407786795,1772800241956,-3531.11,0.0001978,2]
[407786796,1772800241965,-150.0,0.0001978,2]
[407786797,1772800241975,-259.47,0.0001978,2]
[407786798,1772800241985,-2026.66,0.0001978,2]
[407786799,1772800241994,-500.0,0.00019799,2]
[407786800,1772800242003,-500.0,0.00019799,2]
[407786801,1772800242012,-64752.3398,0.000198,2]
[407786802,1772800242022,-780.83,0.00019852,2]
[407786803,1772800242031,-1588.87470879,0.0001986,2]
[407786804,1772800242040,-1000.0,0.0001986,2]
[407786805,1772800242049,-153.25442737,0.00019889,2]
[407786806,1772800242060,-352.04926069,0.0001989,2]
[407786807,1772800242069,-500.0,0.00019899,2]
[407786808,1772800242079,-500.0,0.00019899,2]
[407786809,1772800242088,-513.82971937,0.00019899,2]
[407786810,1772800242099,-500.0,0.00019899,2]
[407786811,1772800242109,-500.0,0.00019899,2]
[407786812,1772800242118,-500.0,0.00019899,2]
[407786813,1772800242128,-500.0,0.00019899,2]
[407786814,1772800242138,-500.0,0.00019899,2]
[407786815,1772800242148,-25000.0,0.000199,3]
[407786816,1772800242160,-2148.8308,0.000199,2]
[407786817,1772800242171,-14720.2249,0.000199,2]
[407786818,1772800242180,-1000.0,0.000199,2]
[407786819,1772800242190,-172.74325605,0.000199,3]
[407786820,1772800242200,-170.94637663,0.000199,2]
[407786821,1772800242210,-5054.43000001,0.000199,7]
[407786822,1772800242219,-8709.66201678,0.000199,2]
[407786823,1772800242228,-438.37292204,0.000199,2]
[407786824,1772800242238,-1323.26941474,0.000199,2]
[407786825,1772800242247,-157.40983265,0.000199,2]
[407786826,1772800242256,-586.26351861,0.000199,2]
[407786827,1772800242265,-268.74096125,0.000199,2]
[407786828,1772800242274,-11044.62705703,0.000199,2]
[407786829,1772800242283,-1308.16777387,0.000199,2]
[407786830,1772800242293,-151.0,0.00019924,2]
[407786831,1772800242304,-315967.8378495,0.00019927,2]
[407786832,1772800242313,-15948.9690546,0.00019927,2]
[407786833,1772800242322,-606.6000015,0.00019927,2]
[407786834,1772800242331,-169.7307991,0.00019931,2]
[407786835,1772800242340,-168.0,0.00019954,2]
[407786836,1772800242349,-400.0,0.0001997,2]
[407786837,1772800242359,-500.0,0.00019973,2]
[407786838,1772800242368,-500.0,0.00019973,2]
[407786839,1772800242377,-500.0,0.00019973,2]
[407786840,1772800242386,-182.43846544,0.00019973,2]
[407786841,1772800242395,-446.12402339,0.00019973,2]
[407786842,1772800242405,-352.04926069,0.0001999,2]
[407786843,1772800242414,-151.0,0.00019997,2]
[407786844,1772800242423,-779.82,0.00019998,2]
[407786845,1772800242432,-551.6181156,0.00019998,2]
[407786846,1772800242442,-666.0,0.00019999,2]
[407786847,1772800242451,-300.0,0.00019999,2]
[407786848,1772800242460,-300.0,0.00019999,2]
[407786849,1772800242469,-578.69,0.00019999,2]
[407786850,1772800242479,-578.69,0.00019999,2]
[407786851,1772800242488,-578.69,0.00019999,2]
[407786852,1772800242497,-578.69,0.00019999,2]
[407786853,1772800242506,-578.69,0.00019999,2]
[407786854,1772800242516,-578.69,0.00019999,2]
[407786855,1772800242525,-578.69,0.00019999,2]
[407786856,1772800242535,-578.69,0.00019999,2]
[407786857,1772800242545,-578.69,0.00019999,2]
[407786858,1772800242555,-578.69,0.00019999,2]
[407786859,1772800242564,-578.69,0.00019999,2]
[407786860,1772800242573,-578.69,0.00019999,2]
[407786861,1772800242583,-578.69,0.00019999,2]
[407786862,1772800242592,-578.69,0.00019999,2]
[407786863,1772800242604,-578.69,0.00019999,2]
[407786864,1772800242613,-578.69,0.00019999,2]
[407786865,1772800242623,-578.69,0.00019999,2]
[407786866,1772800242632,-578.69,0.00019999,2]
[407786867,1772800242642,-578.69,0.00019999,2]
[407786868,1772800242651,-578.69,0.00019999,2]
[407786869,1772800242660,-578.69,0.00019999,2]
[407786870,1772800242671,-578.69,0.00019999,2]
[407786871,1772800242680,-578.69,0.00019999,2]
[407786872,1772800242689,-578.88475892,0.00019999,2]
[407786873,1772800242698,-500.0,0.00019999,2]
[407786874,1772800242707,-500.0,0.00019999,2]
[407786875,1772800242716,-500.0,0.00019999,2]
[407786876,1772800242725,-500.0,0.00019999,2]
[407786877,1772800242735,-462.18232633,0.00019999,2]
[407786878,1772800242744,-500.0,0.00019999,2]
[407786879,1772800242753,-500.0,0.00019999,2]
[407786880,1772800242762,-500.0,0.00019999,2]
[407786881,1772800242771,-500.0,0.00019999,2]
[407786882,1772800242780,-500.0,0.00019999,2]
[407786883,1772800242789,-500.0,0.00019999,2]
[407786884,1772800242798,-500.0,0.00019999,2]
[407786885,1772800242808,-500.0,0.00019999,2]
[407786886,1772800242817,-500.0,0.00019999,2]
[407786887,1772800242826,-500.0,0.00019999,2]
[407786888,1772800242835,-500.0,0.00019999,2]
[407786889,1772800242845,-500.0,0.00019999,2]
[407786890,1772800242854,-500.0,0.00019999,2]
[407786891,1772800242863,-500.0,0.00019999,2]
[407786892,1772800242872,-500.0,0.00019999,2]
[407786893,1772800242881,-637.44948244,0.00019999,2]
[407786894,1772800242891,-393.28545405,0.00019999,2]
[407786895,1772800242900,-779.82,0.00019999,2]
[407786896,1772800242909,-779.82,0.00019999,2]
[407786897,1772800242918,-779.82,0.00019999,2]
[407786898,1772800242928,-779.82,0.00019999,2]
[407786899,1772800242937,-779.82,0.00019999,2]
[407786900,1772800242947,-779.82,0.00019999,2]
[407786901,1772800242956,-779.82,0.00019999,2]
[407786902,1772800242965,-779.82,0.00019999,2]
[407786903,1772800242975,-779.82,0.00019999,2]
[407786904,1772800242984,-779.82,0.00019999,2]
[407786905,1772800242993,-779.82,0.00019999,2]
[407786907,1772800243002,-779.82,0.00019999,2]
[407786908,1772800243012,-779.82,0.00019999,2]
[407786909,1772800243021,-779.82,0.00019999,2]
[407786910,1772800243030,-779.82,0.00019999,2]
[407786911,1772800243039,-779.82,0.00019999,2]
[407786912,1772800243048,-779.82,0.00019999,2]
[407786913,1772800243059,-779.82,0.00019999,2]
[407786914,1772800243068,-779.82,0.00019999,2]
[407786915,1772800243078,-779.82,0.00019999,2]
[407786916,1772800243087,-779.82,0.00019999,2]
[407786917,1772800243096,-779.84624358,0.00019999,2]
[407786918,1772800243105,-500.0,0.00019999,2]
[407786919,1772800243114,-500.0,0.00019999,2]
[407786920,1772800243123,-500.0,0.00019999,2]
[407786921,1772800243133,-604.96,0.00019999,2]
[407786922,1772800243143,-500.0,0.00019999,2]
[407786923,1772800243153,-500.0,0.00019999,2]
[407786924,1772800243163,-500.0,0.00019999,2]
[407786925,1772800243173,-500.0,0.00019999,2]
[407786926,1772800243183,-500.0,0.00019999,2]
[407786927,1772800243193,-500.0,0.00019999,2]
[407786928,1772800243202,-500.0,0.00019999,2]
[407786929,1772800243212,-630.4807599,0.00019999,2]
[407786930,1772800243221,-500.0,0.00019999,2]
[407786931,1772800243230,-500.0,0.00019999,2]
[407786932,1772800243239,-500.0,0.00019999,2]
[407786933,1772800243248,-274.62,0.00019999,2]
[407786934,1772800243267,-500.0,0.00019999,2]
[407786935,1772800243276,-500.0,0.00019999,2]
[407786936,1772800243285,-500.0,0.00019999,2]
[407786937,1772800243295,-500.0,0.00019999,2]
[407786938,1772800243304,-3000.0,0.00019999,2]
[407786939,1772800243314,-3000.0,0.00019999,7]
[407786940,1772800243323,-150.0,0.00019999,2]
[407786941,1772800243336,-183.31183954,0.00019999,2]
[407786942,1772800243353,-5112189.57804662,0.0002,2]
[407786943,1772800243371,-298.62469339,0.0002,2]
[407786944,1772800243383,-735.44834031,0.0002,2]
[407786945,1772800243394,-3059.22637876,0.0002,2]
[407786946,1772800243421,-280.09599971,0.0002,2]
[407786947,1772800243432,-1764.01053339,0.0002,2]
[407786948,1772800243444,-1623.70486216,0.0002,2]
[407786949,1772800243458,-17153.87305721,0.0002,2]
[407786958,1772800245445,-2318.34040866,0.0002,2]
[407786959,1772800245456,-557.09115348,0.0002,2]
[407786960,1772800245467,-347.49226042,0.0002,2]
[407786961,1772800245478,-1323.60114621,0.0002,2]
[407786962,1772800245501,-34905.95353951,0.0002,2]
[407786963,1772800245641,-8532289.43853912,0.0002,2]
[407786970,1772800247493,-2842.81981735,0.0001825,2]
[407786971,1772800247544,-5164.05301309,0.0001825,2]
[407786972,1772800247554,-9814.7861892,0.0002,2]
[407786973,1772800247565,-2082.54561959,0.0002,2]
[407786974,1772800248800,-183.62,0.0001908,3]
[407786975,1772800248810,-316.38,0.0002,2]
[407786976,1772800248821,-18197.24676055,0.0002,2]
[407786977,1772800248832,-57570.09494732,0.0002,2]
[407786978,1772800248854,-98.68384903,0.0002,2]
[407786979,1772800248911,-259.90999993,0.0002,2]
[407786980,1772800271881,337.66,9.609e-05,2]
[407786981,1772800273824,337.66,0.00010115,2]
[407786982,1772800274048,337.66,0.00010621,2]
[407786983,1772800274500,337.66,0.00011126,2]
[407786984,1772800274618,337.66,0.00011632,2]
[407786985,1772800274814,337.66,0.00012138,2]
[407786986,1772800275063,337.66,0.00012644,2]
[407786987,1772800275272,337.66,0.00013149,2]
[407786988,1772800275459,337.66,0.00013655,2]
[407786989,1772800275654,337.66,0.00014161,2]
[407786990,1772800275853,337.66,0.00014667,2]
[407787000,1772800335747,535.24701634,0.00012,2]
[407787001,1772800336251,524.792161,0.00012,2]
[407787002,1772800341747,500.0,0.00012,2]
[407787003,1772800346830,500.0,9.932e-05,2]
[407787004,1772800347338,500.0,0.00012,2]
[407787005,1772800347757,604.37882443,0.00012,2]
[407787006,1772800348937,948.24735875,9.932e-05,2]
[407787007,1772800350449,600.0,0.00012,2]
[407787008,1772800350824,600.0,0.00012,2]
[407787066,1772800568684,-250.0,0.00015,2]
[407787101,1772800804549,500.0,0.00014817,2]
[407787102,1772800871184,2879.99,0.00014663,2]
[407787103,1772800876801,-276.0,0.00015172,2]
[407787104,1772800876830,-337.66,0.00015172,2]
[407787105,1772800876860,-977.46197326,0.00015211,2]
[407787106,1772800876891,-200.0,0.00015233,2]
[407787107,1772800876920,-250.0,0.00015249,2]
[407787108,1772800876948,-250.0,0.00015326,2]
[407787109,1772800876981,-1852.42,0.00015332,2]
[407787110,1772800877011,-300.0,0.00015423,2]
[407787111,1772800877039,-300.0,0.00015424,2]
[407787112,1772800882587,-500.0,0.000149,2]
[407787113,1772800882615,-1200.0,0.00015424,2]
[407787114,1772800882644,-300.0,0.00015424,2]
[407787115,1772800882997,-1200.0,0.00015425,2]
[407787116,1772800883025,-300.0,0.00015425,2]
[407787117,1772800885732,-868.32595608,0.00015425,2]
[407787118,1772800888630,-10000.01,0.00015425,2]
[407787120,1772800922690,517.0,0.00014,2]
[407787121,1772800928844,500.0,0.00014998,2]
[407787123,1772801084787,2986.083981,0.00014996,2]
[407787124,1772801154764,-357.5607,0.00015072,2]
[407787125,1772801154790,-4284.8886,0.0001516,2]
[407787126,1772801154971,-715.1114,0.0001516,2]
[407787127,1772801155001,-152.17268495,0.00015325,2]
[407787128,1772801155030,-600.0,0.00015367,2]
[407787129,1772801155059,-152.17268493,0.00015375,2]
[407787130,1772801155087,-250.0,0.00015386,2]
[407787131,1772801155117,-300.0,0.00015423,2]
[407787132,1772801155146,-1200.0,0.00015423,2]
[407787133,1772801155174,-300.0,0.00015423,2]
[407787134,1772801155201,-300.0,0.00015423,2]
[407787135,1772801155229,-152.17268493,0.00015424,2]
[407787136,1772801155256,-821.0,0.00015424,2]
[407787137,1772801155426,-422.382,0.00015425,2]
[407787138,1772801155456,-2931.496,0.00015425,2]
[407787139,1772801155570,-3292.254,0.00015425,2]
[407787140,1772801155599,-300.0,0.00015425,2]
[407787141,1772801156853,-152.65972052,0.00015425,2]
[407787142,1772801156884,-2815.502,0.00015425,2]
[407787143,1772801157025,-7847.6361234,0.00015425,2]
[407787144,1772801157035,-170.94637665,0.00015426,2]
[407787145,1772801157045,-1981.42749995,0.00015426,2]
[407787146,1772801157151,-6728.2345169,0.00015426,2]
[407787147,1772801157161,-3271.7754831,0.00015426,2]
[407787148,1772801157316,-6755.27475955,0.00015426,2]
[407787149,1772801157327,-1157.86073795,0.00015426,2]
[407787150,1772801157338,-650.48183769,0.00015426,2]
[407787151,1772801157348,-438.37292205,0.00015426,2]
[407787152,1772801157358,-998.01974276,0.00015471,2]
[407787153,1772801158379,-180.20025724,0.00015471,2]
[407787154,1772801158388,-173.42827773,0.000155,2]
[407787155,1772801158398,-352.04926069,0.00015515,2]
[407787156,1772801158407,-151.0,0.00015516,2]
[407787157,1772801158417,-151.0,0.00015516,2]
[407787158,1772801158426,-151.0,0.00015516,2]
[407787159,1772801158436,-151.0,0.00015516,2]
[407787160,1772801158445,-151.0,0.00015516,2]
[407787161,1772801158454,-151.0,0.00015516,2]
[407787162,1772801158464,-151.0,0.00015516,2]
[407787163,1772801158473,-151.0,0.00015516,2]
[407787164,1772801158483,-151.0,0.00015516,2]
[407787165,1772801158492,-151.0,0.00015516,2]
[407787166,1772801158502,-151.0,0.00015516,2]
[407787167,1772801158511,-251.3544907,0.00015516,2]
[407787168,1772801158520,-151.0,0.00015516,2]
[407787169,1772801158530,-151.0,0.00015516,2]
[407787170,1772801158540,-151.0,0.00015516,2]
[407787171,1772801158549,-151.0,0.00015516,2]
[407787172,1772801158560,-151.0,0.00015516,2]
[407787173,1772801158571,-151.0,0.00015516,2]
[407787174,1772801158580,-151.0,0.00015516,2]
[407787175,1772801158590,-151.0,0.00015516,2]
[407787176,1772801158600,-151.0,0.00015516,2]
[407787177,1772801158609,-151.0,0.00015516,2]
[407787178,1772801158619,-151.0,0.00015516,2]
[407787179,1772801158628,-151.0,0.00015516,2]
[407787180,1772801158638,-151.0,0.00015516,2]
[407787181,1772801158647,-151.0,0.00015516,2]
[407787182,1772801158657,-151.0,0.00015516,2]
[407787183,1772801158667,-151.0,0.00015516,2]
[407787184,1772801158677,-153.38423145,0.00015516,2]
[407787185,1772801158686,-151.0,0.00015522,2]
[407787186,1772801158697,-492.56619301,0.00015523,2]
[407787187,1772801158706,-4169.02728918,0.00015524,2]
[407787188,1772801158861,-10000.01,0.00015524,2]
[407787189,1772801160332,-10000.01,0.00015524,2]
[407787190,1772801160835,-341.00133695,0.00015524,2]
[407787191,1772801160845,-209.48,0.00015524,2]
[407787192,1772801160858,-500.0,0.00015524,2]
[407787193,1772801160867,-391.58605303,0.00015524,2]
[407787194,1772801160877,-500.0,0.00015524,2]
[407787195,1772801160886,-500.0,0.00015524,2]
[407787196,1772801160897,-500.0,0.00015524,2]
[407787197,1772801160906,-346.54766944,0.00015524,2]